{"text_format":"3","workbook":"xlsx","n_sheets":3,"sheets":["Dnevni raspored","Planer događaja","Vremenski intervali"],"not_rendered":{"images":1,"defined_names":21},"read":"whole","date_system":"1900"}

{"sheet":"Dnevni raspored","index":0,"n_rows":75,"n_cols":13,"rows_kept":75,"merged":[[1,1,5,2],[2,12,4,12],[3,7,4,7],[5,12,7,12],[6,1,8,2],[8,12,10,12],[9,7,10,7],[10,1,10,2],[11,12,13,12],[14,12,16,12],[15,7,16,7],[17,12,19,12],[18,1,18,2],[20,12,22,12],[21,7,22,7],[23,12,25,12],[25,1,25,2],[26,7,27,7],[26,12,28,12],[29,12,31,12],[31,7,32,7],[32,12,34,12]]}
[null,"Dnevni raspored"]
[null,{"$f":"IFERROR(DAY(VredDatuma),\"\")","v":""},null,null,"Vreme",{"$f":"IFERROR(UPPER(TEXT(DATE(GodišnjiIzveštaj,BrojMeseca,DnevniIzveštaj),\"d. mmmm yyyy\")),\"\")","v":"6. SEPTEMBER 2019"},null,"POGLED NA SEDMICU",{"$nulls":3},"BELEŠKE / LISTA ZADUŽENJA"]
[{"$nulls":4},{"$f":"'Vremenski intervali'!E3","v":"06:00:00"},{"$f":"IFERROR(INDEX(PlanerDogađaja[],MATCH(DATEVALUE(VredDatuma)&DnevniRaspored[[#This Row],[Vreme]],TraženjeDatumaIVremena,0),3),\"\")","v":""},null,{"$f":"IFERROR(TEXT(DATEVALUE(VredDatuma)+1,\"dddd\"),\"\")","v":""},{"$f":"IFERROR(INDEX(PlanerDogađaja[],MATCH($H$6&\"|\"&ROW(A1),PlanerDogađaja[JEDINSTVENA VREDNOST (IZRAČUNATA)],0),2),\"\")","v":""},{"$f":"IFERROR(INDEX(PlanerDogađaja[],MATCH($H$6&\"|\"&ROW(A1),PlanerDogađaja[JEDINSTVENA VREDNOST (IZRAČUNATA)],0),3),\"\")","v":""},null,null,"Pokupi odeću sa hemijskog čišćenja"]
[{"$nulls":4},{"$f":"'Vremenski intervali'!E4","v":"06:15:00"},{"$f":"IFERROR(INDEX(PlanerDogađaja[],MATCH(DATEVALUE(VredDatuma)&DnevniRaspored[[#This Row],[Vreme]],TraženjeDatumaIVremena,0),3),\"\")","v":""},null,{"$f":"IFERROR(TEXT(DATEVALUE(VredDatuma)+1,\"d\"),\"\")","v":""},{"$f":"IFERROR(INDEX(PlanerDogađaja[],MATCH($H$6&\"|\"&ROW(A2),PlanerDogađaja[JEDINSTVENA VREDNOST (IZRAČUNATA)],0),2),\"\")","v":""},{"$f":"IFERROR(INDEX(PlanerDogađaja[],MATCH($H$6&\"|\"&ROW(A2),PlanerDogađaja[JEDINSTVENA VREDNOST (IZRAČUNATA)],0),3),\"\")","v":""}]
[{"$nulls":4},{"$f":"'Vremenski intervali'!E5","v":"06:30:00"},{"$f":"IFERROR(INDEX(PlanerDogađaja[],MATCH(DATEVALUE(VredDatuma)&DnevniRaspored[[#This Row],[Vreme]],TraženjeDatumaIVremena,0),3),\"\")","v":""},null,null,{"$f":"IFERROR(INDEX(PlanerDogađaja[],MATCH($H$6&\"|\"&ROW(A3),PlanerDogađaja[JEDINSTVENA VREDNOST (IZRAČUNATA)],0),2),\"\")","v":""},{"$f":"IFERROR(INDEX(PlanerDogađaja[],MATCH($H$6&\"|\"&ROW(A3),PlanerDogađaja[JEDINSTVENA VREDNOST (IZRAČUNATA)],0),3),\"\")","v":""}]
[{"$nulls":4},{"$f":"'Vremenski intervali'!E6","v":"06:45:00"},{"$f":"IFERROR(INDEX(PlanerDogađaja[],MATCH(DATEVALUE(VredDatuma)&DnevniRaspored[[#This Row],[Vreme]],TraženjeDatumaIVremena,0),3),\"\")","v":""},null,{"$f":"IFERROR(VredDatuma+1,\"\")","v":""},{"$f":"IFERROR(INDEX(PlanerDogađaja[],MATCH($H$6&\"|\"&ROW(A4),PlanerDogađaja[JEDINSTVENA VREDNOST (IZRAČUNATA)],0),2),\"\")","v":""},{"$f":"IFERROR(INDEX(PlanerDogađaja[],MATCH($H$6&\"|\"&ROW(A4),PlanerDogađaja[JEDINSTVENA VREDNOST (IZRAČUNATA)],0),3),\"\")","v":""},null,null,"Zovi kablovsko preduzeće"]
[null,{"$f":"IFERROR(TEXT(VredDatuma,\"dddd\"),\"\")","v":"6. SEPTEMBER 2019"},null,null,{"$f":"'Vremenski intervali'!E7","v":"07:00:00"},{"$f":"IFERROR(INDEX(PlanerDogađaja[],MATCH(DATEVALUE(VredDatuma)&DnevniRaspored[[#This Row],[Vreme]],TraženjeDatumaIVremena,0),3),\"\")","v":""},null,null,{"$f":"IFERROR(INDEX(PlanerDogađaja[],MATCH($H$6&\"|\"&ROW(A5),PlanerDogađaja[JEDINSTVENA VREDNOST (IZRAČUNATA)],0),2),\"\")","v":""},{"$f":"IFERROR(INDEX(PlanerDogađaja[],MATCH($H$6&\"|\"&ROW(A5),PlanerDogađaja[JEDINSTVENA VREDNOST (IZRAČUNATA)],0),3),\"\")","v":""}]
[{"$nulls":4},{"$f":"'Vremenski intervali'!E8","v":"07:15:00"},{"$f":"IFERROR(INDEX(PlanerDogađaja[],MATCH(DATEVALUE(VredDatuma)&DnevniRaspored[[#This Row],[Vreme]],TraženjeDatumaIVremena,0),3),\"\")","v":""},null,null,{"$f":"IFERROR(INDEX(PlanerDogađaja[],MATCH($H$6&\"|\"&ROW(A6),PlanerDogađaja[JEDINSTVENA VREDNOST (IZRAČUNATA)],0),2),\"\")","v":""},{"$f":"IFERROR(INDEX(PlanerDogađaja[],MATCH($H$6&\"|\"&ROW(A6),PlanerDogađaja[JEDINSTVENA VREDNOST (IZRAČUNATA)],0),3),\"\")","v":""}]
[{"$nulls":4},{"$f":"'Vremenski intervali'!E9","v":"07:30:00"},{"$f":"IFERROR(INDEX(PlanerDogađaja[],MATCH(DATEVALUE(VredDatuma)&DnevniRaspored[[#This Row],[Vreme]],TraženjeDatumaIVremena,0),3),\"\")","v":""},null,{"$f":"IFERROR(TEXT(DATEVALUE(VredDatuma)+2,\"dddd\"),\"\")","v":""},{"$f":"IFERROR(INDEX(PlanerDogađaja[],MATCH($H$12&\"|\"&ROW(A1),PlanerDogađaja[JEDINSTVENA VREDNOST (IZRAČUNATA)],0),2),\"\")","v":""},{"$f":"IFERROR(INDEX(PlanerDogađaja[],MATCH($H$12&\"|\"&ROW(A1),PlanerDogađaja[JEDINSTVENA VREDNOST (IZRAČUNATA)],0),3),\"\")","v":""}]
[{"$nulls":4},{"$f":"'Vremenski intervali'!E10","v":"07:45:00"},{"$f":"IFERROR(INDEX(PlanerDogađaja[],MATCH(DATEVALUE(VredDatuma)&DnevniRaspored[[#This Row],[Vreme]],TraženjeDatumaIVremena,0),3),\"\")","v":""},null,{"$f":"IFERROR(TEXT(DATEVALUE(VredDatuma)+2,\"d\"),\"\")","v":""},{"$f":"IFERROR(INDEX(PlanerDogađaja[],MATCH($H$12&\"|\"&ROW(A2),PlanerDogađaja[JEDINSTVENA VREDNOST (IZRAČUNATA)],0),2),\"\")","v":""},{"$f":"IFERROR(INDEX(PlanerDogađaja[],MATCH($H$12&\"|\"&ROW(A2),PlanerDogađaja[JEDINSTVENA VREDNOST (IZRAČUNATA)],0),3),\"\")","v":""}]
[null,"PRIKAŽI RASPORED",null,null,{"$f":"'Vremenski intervali'!E11","v":"08:00:00"},{"$f":"IFERROR(INDEX(PlanerDogađaja[],MATCH(DATEVALUE(VredDatuma)&DnevniRaspored[[#This Row],[Vreme]],TraženjeDatumaIVremena,0),3),\"\")","v":""},null,null,{"$f":"IFERROR(INDEX(PlanerDogađaja[],MATCH($H$12&\"|\"&ROW(A3),PlanerDogađaja[JEDINSTVENA VREDNOST (IZRAČUNATA)],0),2),\"\")","v":""},{"$f":"IFERROR(INDEX(PlanerDogađaja[],MATCH($H$12&\"|\"&ROW(A3),PlanerDogađaja[JEDINSTVENA VREDNOST (IZRAČUNATA)],0),3),\"\")","v":""}]
[{"$nulls":4},{"$f":"'Vremenski intervali'!E12","v":"08:15:00"},{"$f":"IFERROR(INDEX(PlanerDogađaja[],MATCH(DATEVALUE(VredDatuma)&DnevniRaspored[[#This Row],[Vreme]],TraženjeDatumaIVremena,0),3),\"\")","v":""},null,{"$f":"IFERROR(VredDatuma+2,\"\")","v":""},{"$f":"IFERROR(INDEX(PlanerDogađaja[],MATCH($H$12&\"|\"&ROW(A4),PlanerDogađaja[JEDINSTVENA VREDNOST (IZRAČUNATA)],0),2),\"\")","v":""},{"$f":"IFERROR(INDEX(PlanerDogađaja[],MATCH($H$12&\"|\"&ROW(A4),PlanerDogađaja[JEDINSTVENA VREDNOST (IZRAČUNATA)],0),3),\"\")","v":""}]
[null,"Godina",null,null,{"$f":"'Vremenski intervali'!E13","v":"08:30:00"},{"$f":"IFERROR(INDEX(PlanerDogađaja[],MATCH(DATEVALUE(VredDatuma)&DnevniRaspored[[#This Row],[Vreme]],TraženjeDatumaIVremena,0),3),\"\")","v":""},null,null,{"$f":"IFERROR(INDEX(PlanerDogađaja[],MATCH($H$12&\"|\"&ROW(A5),PlanerDogađaja[JEDINSTVENA VREDNOST (IZRAČUNATA)],0),2),\"\")","v":""},{"$f":"IFERROR(INDEX(PlanerDogađaja[],MATCH($H$12&\"|\"&ROW(A5),PlanerDogađaja[JEDINSTVENA VREDNOST (IZRAČUNATA)],0),3),\"\")","v":""}]
[{"$nulls":4},{"$f":"'Vremenski intervali'!E14","v":"08:45:00"},{"$f":"IFERROR(INDEX(PlanerDogađaja[],MATCH(DATEVALUE(VredDatuma)&DnevniRaspored[[#This Row],[Vreme]],TraženjeDatumaIVremena,0),3),\"\")","v":""},null,null,{"$f":"IFERROR(INDEX(PlanerDogađaja[],MATCH($H$12&\"|\"&ROW(A6),PlanerDogađaja[JEDINSTVENA VREDNOST (IZRAČUNATA)],0),2),\"\")","v":""},{"$f":"IFERROR(INDEX(PlanerDogađaja[],MATCH($H$12&\"|\"&ROW(A6),PlanerDogađaja[JEDINSTVENA VREDNOST (IZRAČUNATA)],0),3),\"\")","v":""}]
[null,"Mesec",null,null,{"$f":"'Vremenski intervali'!E15","v":"09:00:00"},{"$f":"IFERROR(INDEX(PlanerDogađaja[],MATCH(DATEVALUE(VredDatuma)&DnevniRaspored[[#This Row],[Vreme]],TraženjeDatumaIVremena,0),3),\"\")","v":""},null,{"$f":"IFERROR(TEXT(DATEVALUE(VredDatuma)+3,\"dddd\"),\"\")","v":""},{"$f":"IFERROR(INDEX(PlanerDogađaja[],MATCH($H$18&\"|\"&ROW(A1),PlanerDogađaja[JEDINSTVENA VREDNOST (IZRAČUNATA)],0),2),\"\")","v":""},{"$f":"IFERROR(INDEX(PlanerDogađaja[],MATCH($H$18&\"|\"&ROW(A1),PlanerDogađaja[JEDINSTVENA VREDNOST (IZRAČUNATA)],0),3),\"\")","v":""}]
[{"$nulls":4},{"$f":"'Vremenski intervali'!E16","v":"09:15:00"},{"$f":"IFERROR(INDEX(PlanerDogađaja[],MATCH(DATEVALUE(VredDatuma)&DnevniRaspored[[#This Row],[Vreme]],TraženjeDatumaIVremena,0),3),\"\")","v":""},null,{"$f":"IFERROR(TEXT(DATEVALUE(VredDatuma)+3,\"d\"),\"\")","v":""},{"$f":"IFERROR(INDEX(PlanerDogađaja[],MATCH($H$18&\"|\"&ROW(A2),PlanerDogađaja[JEDINSTVENA VREDNOST (IZRAČUNATA)],0),2),\"\")","v":""},{"$f":"IFERROR(INDEX(PlanerDogađaja[],MATCH($H$18&\"|\"&ROW(A2),PlanerDogađaja[JEDINSTVENA VREDNOST (IZRAČUNATA)],0),3),\"\")","v":""}]
[null,"Dan",null,null,{"$f":"'Vremenski intervali'!E17","v":"09:30:00"},{"$f":"IFERROR(INDEX(PlanerDogađaja[],MATCH(DATEVALUE(VredDatuma)&DnevniRaspored[[#This Row],[Vreme]],TraženjeDatumaIVremena,0),3),\"\")","v":""},null,null,{"$f":"IFERROR(INDEX(PlanerDogađaja[],MATCH($H$18&\"|\"&ROW(A3),PlanerDogađaja[JEDINSTVENA VREDNOST (IZRAČUNATA)],0),2),\"\")","v":""},{"$f":"IFERROR(INDEX(PlanerDogađaja[],MATCH($H$18&\"|\"&ROW(A3),PlanerDogađaja[JEDINSTVENA VREDNOST (IZRAČUNATA)],0),3),\"\")","v":""}]
[{"$nulls":4},{"$f":"'Vremenski intervali'!E18","v":"09:45:00"},{"$f":"IFERROR(INDEX(PlanerDogađaja[],MATCH(DATEVALUE(VredDatuma)&DnevniRaspored[[#This Row],[Vreme]],TraženjeDatumaIVremena,0),3),\"\")","v":""},null,{"$f":"IFERROR(VredDatuma+3,\"\")","v":""},{"$f":"IFERROR(INDEX(PlanerDogađaja[],MATCH($H$18&\"|\"&ROW(A4),PlanerDogađaja[JEDINSTVENA VREDNOST (IZRAČUNATA)],0),2),\"\")","v":""},{"$f":"IFERROR(INDEX(PlanerDogađaja[],MATCH($H$18&\"|\"&ROW(A4),PlanerDogađaja[JEDINSTVENA VREDNOST (IZRAČUNATA)],0),3),\"\")","v":""}]
[null,"UREDI RASPORED",null,null,{"$f":"'Vremenski intervali'!E19","v":"10:00:00"},{"$f":"IFERROR(INDEX(PlanerDogađaja[],MATCH(DATEVALUE(VredDatuma)&DnevniRaspored[[#This Row],[Vreme]],TraženjeDatumaIVremena,0),3),\"\")","v":""},null,null,{"$f":"IFERROR(INDEX(PlanerDogađaja[],MATCH($H$18&\"|\"&ROW(A5),PlanerDogađaja[JEDINSTVENA VREDNOST (IZRAČUNATA)],0),2),\"\")","v":""},{"$f":"IFERROR(INDEX(PlanerDogađaja[],MATCH($H$18&\"|\"&ROW(A5),PlanerDogađaja[JEDINSTVENA VREDNOST (IZRAČUNATA)],0),3),\"\")","v":""}]
[{"$nulls":4},{"$f":"'Vremenski intervali'!E20","v":"10:15:00"},{"$f":"IFERROR(INDEX(PlanerDogađaja[],MATCH(DATEVALUE(VredDatuma)&DnevniRaspored[[#This Row],[Vreme]],TraženjeDatumaIVremena,0),3),\"\")","v":""},null,null,{"$f":"IFERROR(INDEX(PlanerDogađaja[],MATCH($H$18&\"|\"&ROW(A6),PlanerDogađaja[JEDINSTVENA VREDNOST (IZRAČUNATA)],0),2),\"\")","v":""},{"$f":"IFERROR(INDEX(PlanerDogađaja[],MATCH($H$18&\"|\"&ROW(A6),PlanerDogađaja[JEDINSTVENA VREDNOST (IZRAČUNATA)],0),3),\"\")","v":""}]
[null,"Izaberite da biste uredili vremenske intervale",null,null,{"$f":"'Vremenski intervali'!E21","v":"10:30:00"},{"$f":"IFERROR(INDEX(PlanerDogađaja[],MATCH(DATEVALUE(VredDatuma)&DnevniRaspored[[#This Row],[Vreme]],TraženjeDatumaIVremena,0),3),\"\")","v":""},null,{"$f":"IFERROR(TEXT(DATEVALUE(VredDatuma)+4,\"dddd\"),\"\")","v":""},{"$f":"IFERROR(INDEX(PlanerDogađaja[],MATCH($H$24&\"|\"&ROW(A1),PlanerDogađaja[JEDINSTVENA VREDNOST (IZRAČUNATA)],0),2),\"\")","v":""},{"$f":"IFERROR(INDEX(PlanerDogađaja[],MATCH($H$24&\"|\"&ROW(A1),PlanerDogađaja[JEDINSTVENA VREDNOST (IZRAČUNATA)],0),3),\"\")","v":""}]
[{"$nulls":4},{"$f":"'Vremenski intervali'!E22","v":"10:45:00"},{"$f":"IFERROR(INDEX(PlanerDogađaja[],MATCH(DATEVALUE(VredDatuma)&DnevniRaspored[[#This Row],[Vreme]],TraženjeDatumaIVremena,0),3),\"\")","v":""},null,{"$f":"IFERROR(TEXT(DATEVALUE(VredDatuma)+4,\"d\"),\"\")","v":""},{"$f":"IFERROR(INDEX(PlanerDogađaja[],MATCH($H$24&\"|\"&ROW(A2),PlanerDogađaja[JEDINSTVENA VREDNOST (IZRAČUNATA)],0),2),\"\")","v":""},{"$f":"IFERROR(INDEX(PlanerDogađaja[],MATCH($H$24&\"|\"&ROW(A2),PlanerDogađaja[JEDINSTVENA VREDNOST (IZRAČUNATA)],0),3),\"\")","v":""}]
[null,"Izaberite da biste dodali novi događaj",null,null,{"$f":"'Vremenski intervali'!E23","v":"11:00:00"},{"$f":"IFERROR(INDEX(PlanerDogađaja[],MATCH(DATEVALUE(VredDatuma)&DnevniRaspored[[#This Row],[Vreme]],TraženjeDatumaIVremena,0),3),\"\")","v":""},null,null,{"$f":"IFERROR(INDEX(PlanerDogađaja[],MATCH($H$24&\"|\"&ROW(A3),PlanerDogađaja[JEDINSTVENA VREDNOST (IZRAČUNATA)],0),2),\"\")","v":""},{"$f":"IFERROR(INDEX(PlanerDogađaja[],MATCH($H$24&\"|\"&ROW(A3),PlanerDogađaja[JEDINSTVENA VREDNOST (IZRAČUNATA)],0),3),\"\")","v":""}]
[{"$nulls":4},{"$f":"'Vremenski intervali'!E24","v":"11:15:00"},{"$f":"IFERROR(INDEX(PlanerDogađaja[],MATCH(DATEVALUE(VredDatuma)&DnevniRaspored[[#This Row],[Vreme]],TraženjeDatumaIVremena,0),3),\"\")","v":""},null,{"$f":"IFERROR(VredDatuma+4,\"\")","v":""},{"$f":"IFERROR(INDEX(PlanerDogađaja[],MATCH($H$24&\"|\"&ROW(A4),PlanerDogađaja[JEDINSTVENA VREDNOST (IZRAČUNATA)],0),2),\"\")","v":""},{"$f":"IFERROR(INDEX(PlanerDogađaja[],MATCH($H$24&\"|\"&ROW(A4),PlanerDogađaja[JEDINSTVENA VREDNOST (IZRAČUNATA)],0),3),\"\")","v":""}]
[null,"ISTAKNI U RASPOREDU:",null,null,{"$f":"'Vremenski intervali'!E25","v":"11:30:00"},{"$f":"IFERROR(INDEX(PlanerDogađaja[],MATCH(DATEVALUE(VredDatuma)&DnevniRaspored[[#This Row],[Vreme]],TraženjeDatumaIVremena,0),3),\"\")","v":""},null,null,{"$f":"IFERROR(INDEX(PlanerDogađaja[],MATCH($H$24&\"|\"&ROW(A5),PlanerDogađaja[JEDINSTVENA VREDNOST (IZRAČUNATA)],0),2),\"\")","v":""},{"$f":"IFERROR(INDEX(PlanerDogađaja[],MATCH($H$24&\"|\"&ROW(A5),PlanerDogađaja[JEDINSTVENA VREDNOST (IZRAČUNATA)],0),3),\"\")","v":""}]
[null,"Pauza",null,null,{"$f":"'Vremenski intervali'!E26","v":"11:45:00"},{"$f":"IFERROR(INDEX(PlanerDogađaja[],MATCH(DATEVALUE(VredDatuma)&DnevniRaspored[[#This Row],[Vreme]],TraženjeDatumaIVremena,0),3),\"\")","v":""},null,{"$f":"IFERROR(TEXT(DATEVALUE(VredDatuma)+5,\"dddd\"),\"\")","v":""},{"$f":"IFERROR(INDEX(PlanerDogađaja[],MATCH($H$29&\"|\"&ROW(A1),PlanerDogađaja[JEDINSTVENA VREDNOST (IZRAČUNATA)],0),2),\"\")","v":""},{"$f":"IFERROR(INDEX(PlanerDogađaja[],MATCH($H$29&\"|\"&ROW(A1),PlanerDogađaja[JEDINSTVENA VREDNOST (IZRAČUNATA)],0),3),\"\")","v":""}]
[{"$nulls":4},{"$f":"'Vremenski intervali'!E27","v":"12:00:00"},{"$f":"IFERROR(INDEX(PlanerDogađaja[],MATCH(DATEVALUE(VredDatuma)&DnevniRaspored[[#This Row],[Vreme]],TraženjeDatumaIVremena,0),3),\"\")","v":""},null,{"$f":"IFERROR(TEXT(DATEVALUE(VredDatuma)+5,\"d\"),\"\")","v":""},{"$f":"IFERROR(INDEX(PlanerDogađaja[],MATCH($H$29&\"|\"&ROW(A2),PlanerDogađaja[JEDINSTVENA VREDNOST (IZRAČUNATA)],0),2),\"\")","v":""},{"$f":"IFERROR(INDEX(PlanerDogađaja[],MATCH($H$29&\"|\"&ROW(A2),PlanerDogađaja[JEDINSTVENA VREDNOST (IZRAČUNATA)],0),3),\"\")","v":""}]
[{"$nulls":4},{"$f":"'Vremenski intervali'!E28","v":"12:15:00"},{"$f":"IFERROR(INDEX(PlanerDogađaja[],MATCH(DATEVALUE(VredDatuma)&DnevniRaspored[[#This Row],[Vreme]],TraženjeDatumaIVremena,0),3),\"\")","v":""},null,null,{"$f":"IFERROR(INDEX(PlanerDogađaja[],MATCH($H$29&\"|\"&ROW(A3),PlanerDogađaja[JEDINSTVENA VREDNOST (IZRAČUNATA)],0),2),\"\")","v":""},{"$f":"IFERROR(INDEX(PlanerDogađaja[],MATCH($H$29&\"|\"&ROW(A3),PlanerDogađaja[JEDINSTVENA VREDNOST (IZRAČUNATA)],0),3),\"\")","v":""}]
[{"$nulls":4},{"$f":"'Vremenski intervali'!E29","v":"12:30:00"},{"$f":"IFERROR(INDEX(PlanerDogađaja[],MATCH(DATEVALUE(VredDatuma)&DnevniRaspored[[#This Row],[Vreme]],TraženjeDatumaIVremena,0),3),\"\")","v":""},null,{"$f":"IFERROR(VredDatuma+5,\"\")","v":""},{"$f":"IFERROR(INDEX(PlanerDogađaja[],MATCH($H$29&\"|\"&ROW(A4),PlanerDogađaja[JEDINSTVENA VREDNOST (IZRAČUNATA)],0),2),\"\")","v":""},{"$f":"IFERROR(INDEX(PlanerDogađaja[],MATCH($H$29&\"|\"&ROW(A4),PlanerDogađaja[JEDINSTVENA VREDNOST (IZRAČUNATA)],0),3),\"\")","v":""}]
[{"$nulls":4},{"$f":"'Vremenski intervali'!E30","v":"12:45:00"},{"$f":"IFERROR(INDEX(PlanerDogađaja[],MATCH(DATEVALUE(VredDatuma)&DnevniRaspored[[#This Row],[Vreme]],TraženjeDatumaIVremena,0),3),\"\")","v":""},null,null,{"$f":"IFERROR(INDEX(PlanerDogađaja[],MATCH($H$29&\"|\"&ROW(A5),PlanerDogađaja[JEDINSTVENA VREDNOST (IZRAČUNATA)],0),2),\"\")","v":""},{"$f":"IFERROR(INDEX(PlanerDogađaja[],MATCH($H$29&\"|\"&ROW(A5),PlanerDogađaja[JEDINSTVENA VREDNOST (IZRAČUNATA)],0),3),\"\")","v":""}]
[{"$nulls":4},{"$f":"'Vremenski intervali'!E31","v":"13:00:00"},{"$f":"IFERROR(INDEX(PlanerDogađaja[],MATCH(DATEVALUE(VredDatuma)&DnevniRaspored[[#This Row],[Vreme]],TraženjeDatumaIVremena,0),3),\"\")","v":""},null,{"$f":"IFERROR(TEXT(DATEVALUE(VredDatuma)+6,\"dddd\"),\"\")","v":""},{"$f":"IFERROR(INDEX(PlanerDogađaja[],MATCH($H$34&\"|\"&ROW(A1),PlanerDogađaja[JEDINSTVENA VREDNOST (IZRAČUNATA)],0),2),\"\")","v":""},{"$f":"IFERROR(INDEX(PlanerDogađaja[],MATCH($H$34&\"|\"&ROW(A1),PlanerDogađaja[JEDINSTVENA VREDNOST (IZRAČUNATA)],0),3),\"\")","v":""}]
[{"$nulls":4},{"$f":"'Vremenski intervali'!E32","v":"13:15:00"},{"$f":"IFERROR(INDEX(PlanerDogađaja[],MATCH(DATEVALUE(VredDatuma)&DnevniRaspored[[#This Row],[Vreme]],TraženjeDatumaIVremena,0),3),\"\")","v":""},null,{"$f":"IFERROR(TEXT(DATEVALUE(VredDatuma)+6,\"d\"),\"\")","v":""},{"$f":"IFERROR(INDEX(PlanerDogađaja[],MATCH($H$34&\"|\"&ROW(A2),PlanerDogađaja[JEDINSTVENA VREDNOST (IZRAČUNATA)],0),2),\"\")","v":""},{"$f":"IFERROR(INDEX(PlanerDogađaja[],MATCH($H$34&\"|\"&ROW(A2),PlanerDogađaja[JEDINSTVENA VREDNOST (IZRAČUNATA)],0),3),\"\")","v":""}]
[{"$nulls":4},{"$f":"'Vremenski intervali'!E33","v":"13:30:00"},{"$f":"IFERROR(INDEX(PlanerDogađaja[],MATCH(DATEVALUE(VredDatuma)&DnevniRaspored[[#This Row],[Vreme]],TraženjeDatumaIVremena,0),3),\"\")","v":""},null,null,{"$f":"IFERROR(INDEX(PlanerDogađaja[],MATCH($H$34&\"|\"&ROW(A3),PlanerDogađaja[JEDINSTVENA VREDNOST (IZRAČUNATA)],0),2),\"\")","v":""},{"$f":"IFERROR(INDEX(PlanerDogađaja[],MATCH($H$34&\"|\"&ROW(A3),PlanerDogađaja[JEDINSTVENA VREDNOST (IZRAČUNATA)],0),3),\"\")","v":""}]
[{"$nulls":4},{"$f":"'Vremenski intervali'!E34","v":"13:45:00"},{"$f":"IFERROR(INDEX(PlanerDogađaja[],MATCH(DATEVALUE(VredDatuma)&DnevniRaspored[[#This Row],[Vreme]],TraženjeDatumaIVremena,0),3),\"\")","v":""},null,{"$f":"IFERROR(VredDatuma+6,\"\")","v":""},{"$f":"IFERROR(INDEX(PlanerDogađaja[],MATCH($H$34&\"|\"&ROW(A4),PlanerDogađaja[JEDINSTVENA VREDNOST (IZRAČUNATA)],0),2),\"\")","v":""},{"$f":"IFERROR(INDEX(PlanerDogađaja[],MATCH($H$34&\"|\"&ROW(A4),PlanerDogađaja[JEDINSTVENA VREDNOST (IZRAČUNATA)],0),3),\"\")","v":""}]
[{"$nulls":4},{"$f":"'Vremenski intervali'!E35","v":"14:00:00"},{"$f":"IFERROR(INDEX(PlanerDogađaja[],MATCH(DATEVALUE(VredDatuma)&DnevniRaspored[[#This Row],[Vreme]],TraženjeDatumaIVremena,0),3),\"\")","v":""},null,null,{"$f":"IFERROR(INDEX(PlanerDogađaja[],MATCH($H$34&\"|\"&ROW(A5),PlanerDogađaja[JEDINSTVENA VREDNOST (IZRAČUNATA)],0),2),\"\")","v":""},{"$f":"IFERROR(INDEX(PlanerDogađaja[],MATCH($H$34&\"|\"&ROW(A5),PlanerDogađaja[JEDINSTVENA VREDNOST (IZRAČUNATA)],0),3),\"\")","v":""}]
[{"$nulls":4},{"$f":"'Vremenski intervali'!E36","v":"14:15:00"},{"$f":"IFERROR(INDEX(PlanerDogađaja[],MATCH(DATEVALUE(VredDatuma)&DnevniRaspored[[#This Row],[Vreme]],TraženjeDatumaIVremena,0),3),\"\")","v":""}]
[{"$nulls":4},{"$f":"'Vremenski intervali'!E37","v":"14:30:00"},{"$f":"IFERROR(INDEX(PlanerDogađaja[],MATCH(DATEVALUE(VredDatuma)&DnevniRaspored[[#This Row],[Vreme]],TraženjeDatumaIVremena,0),3),\"\")","v":""}]
[{"$nulls":4},{"$f":"'Vremenski intervali'!E38","v":"14:45:00"},{"$f":"IFERROR(INDEX(PlanerDogađaja[],MATCH(DATEVALUE(VredDatuma)&DnevniRaspored[[#This Row],[Vreme]],TraženjeDatumaIVremena,0),3),\"\")","v":""}]
[{"$nulls":4},{"$f":"'Vremenski intervali'!E39","v":"15:00:00"},{"$f":"IFERROR(INDEX(PlanerDogađaja[],MATCH(DATEVALUE(VredDatuma)&DnevniRaspored[[#This Row],[Vreme]],TraženjeDatumaIVremena,0),3),\"\")","v":""}]
[{"$nulls":4},{"$f":"'Vremenski intervali'!E40","v":"15:15:00"},{"$f":"IFERROR(INDEX(PlanerDogađaja[],MATCH(DATEVALUE(VredDatuma)&DnevniRaspored[[#This Row],[Vreme]],TraženjeDatumaIVremena,0),3),\"\")","v":""}]
[{"$nulls":4},{"$f":"'Vremenski intervali'!E41","v":"15:30:00"},{"$f":"IFERROR(INDEX(PlanerDogađaja[],MATCH(DATEVALUE(VredDatuma)&DnevniRaspored[[#This Row],[Vreme]],TraženjeDatumaIVremena,0),3),\"\")","v":""}]
[{"$nulls":4},{"$f":"'Vremenski intervali'!E42","v":"15:45:00"},{"$f":"IFERROR(INDEX(PlanerDogađaja[],MATCH(DATEVALUE(VredDatuma)&DnevniRaspored[[#This Row],[Vreme]],TraženjeDatumaIVremena,0),3),\"\")","v":""}]
[{"$nulls":4},{"$f":"'Vremenski intervali'!E43","v":"16:00:00"},{"$f":"IFERROR(INDEX(PlanerDogađaja[],MATCH(DATEVALUE(VredDatuma)&DnevniRaspored[[#This Row],[Vreme]],TraženjeDatumaIVremena,0),3),\"\")","v":""}]
[{"$nulls":4},{"$f":"'Vremenski intervali'!E44","v":"16:15:00"},{"$f":"IFERROR(INDEX(PlanerDogađaja[],MATCH(DATEVALUE(VredDatuma)&DnevniRaspored[[#This Row],[Vreme]],TraženjeDatumaIVremena,0),3),\"\")","v":""}]
[{"$nulls":4},{"$f":"'Vremenski intervali'!E45","v":"16:30:00"},{"$f":"IFERROR(INDEX(PlanerDogađaja[],MATCH(DATEVALUE(VredDatuma)&DnevniRaspored[[#This Row],[Vreme]],TraženjeDatumaIVremena,0),3),\"\")","v":""}]
[{"$nulls":4},{"$f":"'Vremenski intervali'!E46","v":"16:45:00"},{"$f":"IFERROR(INDEX(PlanerDogađaja[],MATCH(DATEVALUE(VredDatuma)&DnevniRaspored[[#This Row],[Vreme]],TraženjeDatumaIVremena,0),3),\"\")","v":""}]
[{"$nulls":4},{"$f":"'Vremenski intervali'!E47","v":"17:00:00"},{"$f":"IFERROR(INDEX(PlanerDogađaja[],MATCH(DATEVALUE(VredDatuma)&DnevniRaspored[[#This Row],[Vreme]],TraženjeDatumaIVremena,0),3),\"\")","v":""}]
[{"$nulls":4},{"$f":"'Vremenski intervali'!E48","v":"17:15:00"},{"$f":"IFERROR(INDEX(PlanerDogađaja[],MATCH(DATEVALUE(VredDatuma)&DnevniRaspored[[#This Row],[Vreme]],TraženjeDatumaIVremena,0),3),\"\")","v":""}]
[{"$nulls":4},{"$f":"'Vremenski intervali'!E49","v":"17:30:00"},{"$f":"IFERROR(INDEX(PlanerDogađaja[],MATCH(DATEVALUE(VredDatuma)&DnevniRaspored[[#This Row],[Vreme]],TraženjeDatumaIVremena,0),3),\"\")","v":""}]
[{"$nulls":4},{"$f":"'Vremenski intervali'!E50","v":"17:45:00"},{"$f":"IFERROR(INDEX(PlanerDogađaja[],MATCH(DATEVALUE(VredDatuma)&DnevniRaspored[[#This Row],[Vreme]],TraženjeDatumaIVremena,0),3),\"\")","v":""}]
[{"$nulls":4},{"$f":"'Vremenski intervali'!E51","v":"18:00:00"},{"$f":"IFERROR(INDEX(PlanerDogađaja[],MATCH(DATEVALUE(VredDatuma)&DnevniRaspored[[#This Row],[Vreme]],TraženjeDatumaIVremena,0),3),\"\")","v":""}]
[{"$nulls":4},{"$f":"'Vremenski intervali'!E52","v":"18:15:00"},{"$f":"IFERROR(INDEX(PlanerDogađaja[],MATCH(DATEVALUE(VredDatuma)&DnevniRaspored[[#This Row],[Vreme]],TraženjeDatumaIVremena,0),3),\"\")","v":""}]
[{"$nulls":4},{"$f":"'Vremenski intervali'!E53","v":"18:30:00"},{"$f":"IFERROR(INDEX(PlanerDogađaja[],MATCH(DATEVALUE(VredDatuma)&DnevniRaspored[[#This Row],[Vreme]],TraženjeDatumaIVremena,0),3),\"\")","v":""}]
[{"$nulls":4},{"$f":"'Vremenski intervali'!E54","v":"18:45:00"},{"$f":"IFERROR(INDEX(PlanerDogađaja[],MATCH(DATEVALUE(VredDatuma)&DnevniRaspored[[#This Row],[Vreme]],TraženjeDatumaIVremena,0),3),\"\")","v":""}]
[{"$nulls":4},{"$f":"'Vremenski intervali'!E55","v":"19:00:00"},{"$f":"IFERROR(INDEX(PlanerDogađaja[],MATCH(DATEVALUE(VredDatuma)&DnevniRaspored[[#This Row],[Vreme]],TraženjeDatumaIVremena,0),3),\"\")","v":""}]
[{"$nulls":4},{"$f":"'Vremenski intervali'!E56","v":"19:15:00"},{"$f":"IFERROR(INDEX(PlanerDogađaja[],MATCH(DATEVALUE(VredDatuma)&DnevniRaspored[[#This Row],[Vreme]],TraženjeDatumaIVremena,0),3),\"\")","v":""}]
[{"$nulls":4},{"$f":"'Vremenski intervali'!E57","v":"19:30:00"},{"$f":"IFERROR(INDEX(PlanerDogađaja[],MATCH(DATEVALUE(VredDatuma)&DnevniRaspored[[#This Row],[Vreme]],TraženjeDatumaIVremena,0),3),\"\")","v":""}]
[{"$nulls":4},{"$f":"'Vremenski intervali'!E58","v":"19:45:00"},{"$f":"IFERROR(INDEX(PlanerDogađaja[],MATCH(DATEVALUE(VredDatuma)&DnevniRaspored[[#This Row],[Vreme]],TraženjeDatumaIVremena,0),3),\"\")","v":""}]
[{"$nulls":4},{"$f":"'Vremenski intervali'!E59","v":"20:00:00"},{"$f":"IFERROR(INDEX(PlanerDogađaja[],MATCH(DATEVALUE(VredDatuma)&DnevniRaspored[[#This Row],[Vreme]],TraženjeDatumaIVremena,0),3),\"\")","v":""}]
[{"$nulls":4},{"$f":"'Vremenski intervali'!E60","v":"20:15:00"},{"$f":"IFERROR(INDEX(PlanerDogađaja[],MATCH(DATEVALUE(VredDatuma)&DnevniRaspored[[#This Row],[Vreme]],TraženjeDatumaIVremena,0),3),\"\")","v":""}]
[{"$nulls":4},{"$f":"'Vremenski intervali'!E61","v":"20:30:00"},{"$f":"IFERROR(INDEX(PlanerDogađaja[],MATCH(DATEVALUE(VredDatuma)&DnevniRaspored[[#This Row],[Vreme]],TraženjeDatumaIVremena,0),3),\"\")","v":""}]
[{"$nulls":4},{"$f":"'Vremenski intervali'!E62","v":"20:45:00"},{"$f":"IFERROR(INDEX(PlanerDogađaja[],MATCH(DATEVALUE(VredDatuma)&DnevniRaspored[[#This Row],[Vreme]],TraženjeDatumaIVremena,0),3),\"\")","v":""}]
[{"$nulls":4},{"$f":"'Vremenski intervali'!E63","v":"21:00:00"},{"$f":"IFERROR(INDEX(PlanerDogađaja[],MATCH(DATEVALUE(VredDatuma)&DnevniRaspored[[#This Row],[Vreme]],TraženjeDatumaIVremena,0),3),\"\")","v":""}]
[{"$nulls":4},{"$f":"'Vremenski intervali'!E64","v":""},{"$f":"IFERROR(INDEX(PlanerDogađaja[],MATCH(DATEVALUE(VredDatuma)&DnevniRaspored[[#This Row],[Vreme]],TraženjeDatumaIVremena,0),3),\"\")","v":""}]
[{"$nulls":4},{"$f":"'Vremenski intervali'!E65","v":""},{"$f":"IFERROR(INDEX(PlanerDogađaja[],MATCH(DATEVALUE(VredDatuma)&DnevniRaspored[[#This Row],[Vreme]],TraženjeDatumaIVremena,0),3),\"\")","v":""}]
[{"$nulls":4},{"$f":"'Vremenski intervali'!E66","v":""},{"$f":"IFERROR(INDEX(PlanerDogađaja[],MATCH(DATEVALUE(VredDatuma)&DnevniRaspored[[#This Row],[Vreme]],TraženjeDatumaIVremena,0),3),\"\")","v":""}]
[{"$nulls":4},{"$f":"'Vremenski intervali'!E67","v":""},{"$f":"IFERROR(INDEX(PlanerDogađaja[],MATCH(DATEVALUE(VredDatuma)&DnevniRaspored[[#This Row],[Vreme]],TraženjeDatumaIVremena,0),3),\"\")","v":""}]
[{"$nulls":4},{"$f":"'Vremenski intervali'!E68","v":""},{"$f":"IFERROR(INDEX(PlanerDogađaja[],MATCH(DATEVALUE(VredDatuma)&DnevniRaspored[[#This Row],[Vreme]],TraženjeDatumaIVremena,0),3),\"\")","v":""}]
[{"$nulls":4},{"$f":"'Vremenski intervali'!E69","v":""},{"$f":"IFERROR(INDEX(PlanerDogađaja[],MATCH(DATEVALUE(VredDatuma)&DnevniRaspored[[#This Row],[Vreme]],TraženjeDatumaIVremena,0),3),\"\")","v":""}]
[{"$nulls":4},{"$f":"'Vremenski intervali'!E70","v":""},{"$f":"IFERROR(INDEX(PlanerDogađaja[],MATCH(DATEVALUE(VredDatuma)&DnevniRaspored[[#This Row],[Vreme]],TraženjeDatumaIVremena,0),3),\"\")","v":""}]
[{"$nulls":4},{"$f":"'Vremenski intervali'!E71","v":""},{"$f":"IFERROR(INDEX(PlanerDogađaja[],MATCH(DATEVALUE(VredDatuma)&DnevniRaspored[[#This Row],[Vreme]],TraženjeDatumaIVremena,0),3),\"\")","v":""}]
[{"$nulls":4},{"$f":"'Vremenski intervali'!E72","v":""},{"$f":"IFERROR(INDEX(PlanerDogađaja[],MATCH(DATEVALUE(VredDatuma)&DnevniRaspored[[#This Row],[Vreme]],TraženjeDatumaIVremena,0),3),\"\")","v":""}]
[{"$nulls":4},{"$f":"'Vremenski intervali'!E73","v":""},{"$f":"IFERROR(INDEX(PlanerDogađaja[],MATCH(DATEVALUE(VredDatuma)&DnevniRaspored[[#This Row],[Vreme]],TraženjeDatumaIVremena,0),3),\"\")","v":""}]
[{"$nulls":4},{"$f":"'Vremenski intervali'!E74","v":""},{"$f":"IFERROR(INDEX(PlanerDogađaja[],MATCH(DATEVALUE(VredDatuma)&DnevniRaspored[[#This Row],[Vreme]],TraženjeDatumaIVremena,0),3),\"\")","v":""}]
[{"$nulls":4},{"$f":"'Vremenski intervali'!E75","v":""},{"$f":"IFERROR(INDEX(PlanerDogađaja[],MATCH(DATEVALUE(VredDatuma)&DnevniRaspored[[#This Row],[Vreme]],TraženjeDatumaIVremena,0),3),\"\")","v":""}]

{"sheet":"Planer događaja","index":1,"n_rows":15,"n_cols":8,"rows_kept":15,"merged":[[1,1,4,2],[5,1,6,2],[7,1,7,2]]}
[null,"Planer događaja"]
[null,{"$f":"DAY(VredDatuma)","v":{"$error":"#VALUE!"}},null,null,"DATUM","VREME","OPIS","JEDINSTVENA VREDNOST (IZRAČUNATA)"]
[{"$nulls":4},{"$f":"TODAY()","v":"2019-09-06"},"06:00:00","Buđenje",{"$f":"PlanerDogađaja[[#This Row],[DATUM]]&\"|\"&COUNTIF($E$3:E3,E3)","v":"43714|1"}]
[{"$nulls":4},{"$f":"TODAY()","v":"2019-09-06"},"06:30:00","Tuširanje",{"$f":"PlanerDogađaja[[#This Row],[DATUM]]&\"|\"&COUNTIF($E$3:E4,E4)","v":"43714|2"}]
[{"$nulls":4},"2019-09-06","07:30:00","Polazak na posao",{"$f":"PlanerDogađaja[[#This Row],[DATUM]]&\"|\"&COUNTIF($E$3:E5,E5)","v":"43714|3"}]
[null,{"$f":"TEXT(VredDatuma,\"dddd\")","v":"6. SEPTEMBER 2019"},null,null,"2019-09-06","08:00:00","Početak smene",{"$f":"PlanerDogađaja[[#This Row],[DATUM]]&\"|\"&COUNTIF($E$3:E6,E6)","v":"43714|4"}]
[{"$nulls":4},"2019-09-06","10:00:00","Pauza",{"$f":"PlanerDogađaja[[#This Row],[DATUM]]&\"|\"&COUNTIF($E$3:E7,E7)","v":"43714|5"}]
[null,{"$f":"VredDatuma","v":"6. SEPTEMBER 2019"},null,null,"2019-09-06","12:00:00","Ručak",{"$f":"PlanerDogađaja[[#This Row],[DATUM]]&\"|\"&COUNTIF($E$3:E8,E8)","v":"43714|6"}]
[{"$nulls":4},"2019-09-06","13:00:00","Povratak na posao",{"$f":"PlanerDogađaja[[#This Row],[DATUM]]&\"|\"&COUNTIF($E$3:E9,E9)","v":"43714|7"}]
[null,"Izaberite da biste uredili vremenske intervale",null,null,"2019-09-06","13:30:00","Poslovni poziv",{"$f":"PlanerDogađaja[[#This Row],[DATUM]]&\"|\"&COUNTIF($E$3:E10,E10)","v":"43714|8"}]
[{"$nulls":4},"2019-09-06","15:00:00","Pauza",{"$f":"PlanerDogađaja[[#This Row],[DATUM]]&\"|\"&COUNTIF($E$3:E11,E11)","v":"43714|9"}]
[null,"Izaberite da biste videli dnevni raspored",null,null,"2019-09-06","17:00:00","Početak",{"$f":"PlanerDogađaja[[#This Row],[DATUM]]&\"|\"&COUNTIF($E$3:E12,E12)","v":"43714|10"}]
[{"$nulls":4},"2019-09-06","18:00:00","Fudbalski trening",{"$f":"PlanerDogađaja[[#This Row],[DATUM]]&\"|\"&COUNTIF($E$3:E13,E13)","v":"43714|11"}]
[{"$nulls":4},{"$f":"TODAY()+1","v":"2019-09-07"},"06:30:00","Doručak",{"$f":"PlanerDogađaja[[#This Row],[DATUM]]&\"|\"&COUNTIF($E$3:E14,E14)","v":"43715|1"}]
[{"$nulls":4},{"$f":"TODAY()+1","v":"2019-09-07"},"07:30:00","Polazak na posao",{"$f":"PlanerDogađaja[[#This Row],[DATUM]]&\"|\"&COUNTIF($E$3:E15,E15)","v":"43715|2"}]

{"sheet":"Vremenski intervali","index":2,"n_rows":75,"n_cols":5,"rows_kept":75,"merged":[[1,1,1,2],[9,1,9,2]]}
[null,"Vremenski intervali"]
[null,"UREDI RASPORED VREMENA",null,null,"Vreme"]
[{"$nulls":4},{"$f":"VremePočetka","v":"06:00:00"}]
[null,"Vreme početka","06:00:00",null,{"$f":"IFERROR(IF($E3+Inkrement>VremeZavršetka,\"\",$E3+Inkrement),\"\")","v":"06:15:00"}]
[{"$nulls":4},"06:30:00"]
[null,"Interval","15 MIN",null,"06:45:00"]
[{"$nulls":4},"07:00:00"]
[null,"Vreme završetka","21:00:00",null,"07:15:00"]
[{"$nulls":4},"07:30:00"]
[null,"PRIKAŽI RASPORED",null,null,"07:45:00"]
[{"$nulls":4},"08:00:00"]
[null,"Izaberite da biste videli dnevni raspored",null,null,"08:15:00"]
[{"$nulls":4},"08:30:00"]
[null,"Izaberite da biste dodali novi događaj",null,null,"08:45:00"]
[{"$nulls":4},"09:00:00"]
[{"$nulls":4},"09:15:00"]
[{"$nulls":4},"09:30:00"]
[{"$nulls":4},"09:45:00"]
[{"$nulls":4},"10:00:00"]
[{"$nulls":4},"10:15:00"]
[{"$nulls":4},"10:30:00"]
[{"$nulls":4},"10:45:00"]
[{"$nulls":4},"11:00:00"]
[{"$nulls":4},"11:15:00"]
[{"$nulls":4},"11:30:00"]
[{"$nulls":4},"11:45:00"]
[{"$nulls":4},"12:00:00"]
[{"$nulls":4},"12:15:00"]
[{"$nulls":4},"12:30:00"]
[{"$nulls":4},"12:45:00"]
[{"$nulls":4},"13:00:00"]
[{"$nulls":4},"13:15:00"]
[{"$nulls":4},"13:30:00"]
[{"$nulls":4},"13:45:00"]
[{"$nulls":4},"14:00:00"]
[{"$nulls":4},{"$f":"IFERROR(IF($E35+Inkrement>VremeZavršetka,\"\",$E35+Inkrement),\"\")","v":"14:15:00"}]
[{"$nulls":4},"14:30:00"]
[{"$nulls":4},"14:45:00"]
[{"$nulls":4},"15:00:00"]
[{"$nulls":4},"15:15:00"]
[{"$nulls":4},"15:30:00"]
[{"$nulls":4},"15:45:00"]
[{"$nulls":4},"16:00:00"]
[{"$nulls":4},"16:15:00"]
[{"$nulls":4},"16:30:00"]
[{"$nulls":4},"16:45:00"]
[{"$nulls":4},"17:00:00"]
[{"$nulls":4},"17:15:00"]
[{"$nulls":4},"17:30:00"]
[{"$nulls":4},"17:45:00"]
[{"$nulls":4},"18:00:00"]
[{"$nulls":4},"18:15:00"]
[{"$nulls":4},"18:30:00"]
[{"$nulls":4},"18:45:00"]
[{"$nulls":4},"19:00:00"]
[{"$nulls":4},"19:15:00"]
[{"$nulls":4},"19:30:00"]
[{"$nulls":4},"19:45:00"]
[{"$nulls":4},"20:00:00"]
[{"$nulls":4},"20:15:00"]
[{"$nulls":4},"20:30:00"]
[{"$nulls":4},"20:45:00"]
[{"$nulls":4},"21:00:00"]
[{"$nulls":4},""]
[{"$nulls":4},""]
[{"$nulls":4},""]
[{"$nulls":4},""]
[{"$nulls":4},{"$f":"IFERROR(IF($E67+Inkrement>VremeZavršetka,\"\",$E67+Inkrement),\"\")","v":""}]
[{"$nulls":4},""]
[{"$nulls":4},""]
[{"$nulls":4},""]
[{"$nulls":4},""]
[{"$nulls":4},""]
[{"$nulls":4},""]
[{"$nulls":4},""]